Workbook

Sheet Test Affordability
C3: TEST AFFORDABILITY OF DOMESTIC TARIFFS
C5: LOW INCOME: | E5: 3000 | G5: Monthly Household Income
E7: Units of Consumption | F7: Tariff per Unit of Consumption | G7: TOTAL BILL | I7: Bill as % of Monthly Income | J7: Desired Portion of Monthly Income | K7: Ideal Monthly Bill | L7: GAP between Actual Bill and Ideal Bill
C8: WATER
C9: ='[1]Test Afford of Variable Tariff'!$C$9 -> Consumption 7KL to 15KL | E9: 9 | F9: ='[1]Test Afford of Variable Tariff'!$L$9 -> 7.815563725 | G9: =(E9*F9)+(E10*F10)+(E11*F11)+(E12*F12)+(E13*F13)+(E14*F14) -> 70.34007353 | I9: =IF(E5=0,0,G9/($E$5)) -> 0.02344669118 | J9: 0.04 | K9: =J9*($E$5) -> 120 | L9: =G9-K9 -> -49.65992647
C10: ='[1]Test Afford of Variable Tariff'!$C$10 -> Consumption 16KL to 30KL | D10: Type 2 | E10: 0 | F10: ='[1]Test Afford of Variable Tariff'!$L$10 -> 8.597120098
C11: ='[1]Test Afford of Variable Tariff'!$C$11 -> Domestic Consumption Type 3 | D11: Type 3 | E11: 0 | F11: ='[1]Test Afford of Variable Tariff'!$L$11 -> 9.378676471
C12: ='[1]Test Afford of Variable Tariff'!$C$12 -> Domestic Consumption Type 4 | D12: Type 4 | E12: 0 | F12: ='[1]Test Afford of Variable Tariff'!$L$12 -> 7.815563725
C13: ='[1]Test Afford of Variable Tariff'!$C$13 -> Domestic Consumption Type 5 | D13: Type 5 | E13: 0 | F13: ='[1]Test Afford of Variable Tariff'!$L$13 -> 7.815563725
C14: ='[1]Test Afford of Variable Tariff'!$C$14 -> Domestic Consumption Type 6 | D14: Type 6 | E14: 0 | F14: ='[1]Test Afford of Variable Tariff'!$L$14 -> 7.815563725
C15: SANITATION
C16: ='[2]Test Revised Primary Baseline'!$C$7 -> Low Income | E16: 1 | F16: ='[2]Test Revised Primary Baseline'!$K$7 -> 68.88461538 | G16: =E16*F16 -> 68.88461538 | I16: =IF(E5=0,0,G16/($E$5)) -> 0.02296153846 | J16: 0.01 | K16: =J16*($E$5) -> 30 | L16: =G16-K16 -> 38.88461538
C17: SOLID WASTE
C18: ='[3]Test Revised Primary Baseline'!$C$7 -> Residential | E18: 1 | F18: ='[3]Test Revised Primary Baseline'!$K$7 -> 94.70378301 | G18: =E18*F18 -> 94.70378301 | I18: =IF(E5=0,0,G18/($E$5)) -> 0.03156792767 | J18: 0.01 | K18: =J18*($E$5) -> 30 | L18: =G18-K18 -> 64.70378301
C19: ELECTRICITY | D19: Type 1
C20: ='[4]Test Afford of Variable Tariff'!$C$10 -> Domestic Pre-Paid Type 1 | D20: Type 2 | E20: 150 | F20: 0.89 | G20: =(E20*F20)+(E21*F21)+(E22*F22)+(E23*F23)+(E24*F24)+(E25*F25) -> 133.5 | I20: =IF(E5=0,0,G20/($E$5)) -> 0.0445 | J20: 0.05 | K20: =J20*($E$5) -> 150 | L20: =G20-K20 -> -16.5
C21: ='[4]Test Afford of Variable Tariff'!$C$11 -> Domestic Pre-Paid Type 2 | D21: Type 2 | E21: 0 | F21: ='[4]Test Afford of Variable Tariff'!$L$11 -> 0
C22: ='[4]Test Afford of Variable Tariff'!$C$12 -> Domestic Pre-Paid Type 3 | D22: Type 2 | E22: 0 | F22: ='[4]Test Afford of Variable Tariff'!$L$12 -> 0
C23: ='[4]Test Afford of Variable Tariff'!$C$13 -> Domestic Pre-Paid Type 4 | D23: Type 2 | E23: 0 | F23: ='[4]Test Afford of Variable Tariff'!$L$13 -> 0
C24: ='[4]Test Afford of Variable Tariff'!$C$14 -> Domestic Pre-Paid Type 5 | D24: Type 2 | E24: 0 | F24: ='[4]Test Afford of Variable Tariff'!$L$14 -> 0
C25: ='[4]Test Afford of Variable Tariff'!$C$15 -> Domestic Pre-Paid Type 6 | D25: Type 2 | E25: 0 | F25: ='[4]Test Afford of Variable Tariff'!$L$15 -> 0
C26: LOW INCOME TOTAL | G26: =G9+G16+G18+G20 -> 367.4284719 | I26: =IF(E5=0,0,G26/($E$5)) -> 0.1224761573 | J26: =J9+J16+J18+J20 -> 0.11 | K26: =K9+K16+K18+K20 -> 330 | L26: =G26-K26 -> 37.42847193
C30: MIDDLE INCOME | E30: 0 | G30: Monthly Household Income
E32: Units of Consumption | F32: Tariff per Unit of Consumption | G32: TOTAL BILL | I32: Bill as % of Monthly Income | J32: Desired Portion of Monthly Income | K32: Ideal Monthly Bill | L32: GAP between Actual Bill and Ideal Bill
C33: WATER
C34: ='[1]Test Afford of Variable Tariff'!$C$9 -> Consumption 7KL to 15KL | E34: 0 | F34: ='[1]Test Afford of Variable Tariff'!$L$9 -> 7.815563725 | G34: =(E34*F34)+(E35*F35)+(E36*F36)+(E37*F37)+(E38*F38)+(E39*F39) -> 0 | I34: =IF(E30=0,0,(G34+G40)/(E30)) -> 0 | J34: 0 | K34: =J34*(E30) -> 0 | L34: =(G34+G40)-K34 -> 0
C35: ='[1]Test Afford of Variable Tariff'!$C$10 -> Consumption 16KL to 30KL | E35: 0 | F35: ='[1]Test Afford of Variable Tariff'!$L$10 -> 8.597120098
C36: ='[1]Test Afford of Variable Tariff'!$C$11 -> Domestic Consumption Type 3 | E36: 0 | F36: ='[1]Test Afford of Variable Tariff'!$L$11 -> 9.378676471
C37: ='[1]Test Afford of Variable Tariff'!$C$12 -> Domestic Consumption Type 4 | E37: 0 | F37: ='[1]Test Afford of Variable Tariff'!$L$12 -> 7.815563725
C38: ='[1]Test Afford of Variable Tariff'!$C$13 -> Domestic Consumption Type 5 | E38: 0 | F38: ='[1]Test Afford of Variable Tariff'!$L$13 -> 7.815563725
C39: ='[1]Test Afford of Variable Tariff'!$C$14 -> Domestic Consumption Type 6 | E39: 0 | F39: ='[1]Test Afford of Variable Tariff'!$L$14 -> 7.815563725
C40: Fixed Fee | E40: 0 | F40: ='[1]Test Afford of Fixed Tariff'!$L$11 -> 304.0909091 | G40: =E40*F40 -> 0
C41: SUBTOTAL | G41: =SUM(G34+G40) -> 0
C42: SANITATION
C43: ='[2]Test Revised Primary Baseline'!$C$8 -> Middle Income | E43: 0 | F43: ='[2]Test Revised Primary Baseline'!$K$8 -> 76.53846154 | G43: =E43*F43 -> 0 | I43: =IF(E30=0,0,G43/(E30)) -> 0 | J43: 0 | K43: =J43*(E30) -> 0 | L43: =G43-K43 -> 0
C44: SOLID WASTE
C45: ='[3]Test Revised Primary Baseline'!$C$7 -> Residential | E45: 0 | F45: ='[3]Test Revised Primary Baseline'!$K$7 -> 94.70378301 | G45: =E45*F45 -> 0 | I45: =IF(E30=0,0,G45/(E30)) -> 0 | J45: 0 | K45: =J45*(E30) -> 0 | L45: =G45-K45 -> 0
C46: ELECTRICITY | D46: Type 1
C47: ='[4]Test Afford of Variable Tariff'!$C$17 -> Domestic Metered Single Phase Type 1 | D47: Type 2 | E47: 0 | F47: ='[4]Test Afford of Variable Tariff'!$L$17 -> 0 | G47: =(E47*F47)+(E48*F48)+(E49*F49)+(E50*F50)+(E51*F51)+(E52*F52) -> 0 | I47: =IF(E30=0,0,(G47+G53)/(E30)) -> 0 | J47: 0 | K47: =J47*(E30) -> 0 | L47: =(G47+G53)-K47 -> 0
C48: ='[4]Test Afford of Variable Tariff'!$C$18 -> Domestic Metered Single Phase Type 2 | D48: Type 2 | E48: 0 | F48: ='[4]Test Afford of Variable Tariff'!$L$18 -> 0
C49: ='[4]Test Afford of Variable Tariff'!$C$19 -> Domestic Metered Single Phase Type 3 | D49: Type 2 | E49: 0 | F49: ='[4]Test Afford of Variable Tariff'!$L$19 -> 0
C50: ='[4]Test Afford of Variable Tariff'!$C$20 -> Domestic Metered Single Phase Type 4 | D50: Type 2 | E50: 0 | F50: ='[4]Test Afford of Variable Tariff'!$L$20 -> 0
C51: ='[4]Test Afford of Variable Tariff'!$C$21 -> Domestic Metered Single Phase Type 5 | D51: Type 2 | E51: 0 | F51: ='[4]Test Afford of Variable Tariff'!$L$21 -> 0
C52: ='[4]Test Afford of Variable Tariff'!$C$22 -> Domestic Metered Single Phase Type 6 | D52: Type 2 | E52: 0 | F52: ='[4]Test Afford of Variable Tariff'!$L$22 -> 0
C53: Fixed Fee | E53: 0 | F53: ='[4]Test Afford of Fixed Tariff'!$L$15/12 -> 0 | G53: =E53*F53 -> 0
C54: SUBTOTAL | G54: =SUM(G47+G53) -> 0
C55: MIDDLE INCOME TOTAL | G55: =G34+G40+G43+G45+G47+G53 -> 0 | I55: =IF(E30=0,0,G55/(E30/12)) -> 0 | J55: =J34+J43+J45+J47 -> 0 | K55: =K34+K40+K43+K45+K47+K53 -> 0 | L55: =G55-K55 -> 0
C59: HIGH INCOME | E59: 0 | G59: Monthly Household Income
E61: Units of Consumption | F61: Tariff per Unit of Consumption | G61: TOTAL BILL | I61: Bill as % of Monthly Income | J61: Desired Portion of Monthly Income | K61: Ideal Monthly Bill | L61: GAP between Actual Bill and Ideal Bill
C62: WATER
C63: ='[1]Test Afford of Variable Tariff'!$C$9 -> Consumption 7KL to 15KL | E63: 0 | F63: ='[1]Test Afford of Variable Tariff'!$L$9 -> 7.815563725 | G63: =(E63*F63)+(E64*F64)+(E65*F65)+(E66*F66)+(E67*F67)+(E68*F68) -> 0 | I63: =IF(E59=0,0,(G63+G69)/(E59)) -> 0 | J63: 0 | K63: =J63*(E59) -> 0 | L63: =(G63+G69)-K63 -> 0
C64: ='[1]Test Afford of Variable Tariff'!$C$10 -> Consumption 16KL to 30KL | E64: 0 | F64: ='[1]Test Afford of Variable Tariff'!$L$10 -> 8.597120098
C65: ='[1]Test Afford of Variable Tariff'!$C$11 -> Domestic Consumption Type 3 | E65: 0 | F65: ='[1]Test Afford of Variable Tariff'!$L$11 -> 9.378676471
C66: ='[1]Test Afford of Variable Tariff'!$C$12 -> Domestic Consumption Type 4 | E66: 0 | F66: ='[1]Test Afford of Variable Tariff'!$L$12 -> 7.815563725
C67: ='[1]Test Afford of Variable Tariff'!$C$13 -> Domestic Consumption Type 5 | E67: 0 | F67: ='[1]Test Afford of Variable Tariff'!$L$13 -> 7.815563725
C68: ='[1]Test Afford of Variable Tariff'!$C$14 -> Domestic Consumption Type 6 | E68: 0 | F68: ='[1]Test Afford of Variable Tariff'!$L$14 -> 7.815563725
C69: Fixed Fee | E69: 0 | F69: ='[1]Test Afford of Fixed Tariff'!$L$11 -> 304.0909091 | G69: =E69*F69 -> 0
C70: SUBTOTAL | G70: =SUM(G63+G69) -> 0
C71: SANITATION
C72: ='[2]Test Revised Primary Baseline'!$C$9 -> High Income | E72: 0 | F72: ='[2]Test Revised Primary Baseline'!$K$9 -> 76.53846154 | G72: =E72*F72 -> 0 | I72: =IF(E59=0,0,G72/(E59)) -> 0 | J72: 0 | K72: =J72*(E59) -> 0 | L72: =G72-K72 -> 0
C73: SOLID WASTE
C74: ='[3]Test Revised Primary Baseline'!$C$7 -> Residential | E74: 0 | F74: ='[3]Test Revised Primary Baseline'!$K$7 -> 94.70378301 | G74: =E74*F74 -> 0 | I74: =IF(E59=0,0,G74/(E59)) -> 0 | J74: 0 | K74: =J74*(E59) -> 0 | L74: =G74-K74 -> 0
C75: ELECTRICITY | D75: Type 1
C76: ='[4]Test Afford of Variable Tariff'!$C$24 -> Domestic Metered Three Phase Type 1 | D76: Type 2 | E76: 0 | F76: ='[4]Test Afford of Variable Tariff'!$L$24 -> 0 | G76: =(E76*F76)+(E77*F77)+(E78*F78)+(E79*F79)+(E80*F80)+(E81*F81) -> 0 | I76: =IF(E59=0,0,(G76+G82)/(E59)) -> 0 | J76: 0 | K76: =J76*(E59) -> 0 | L76: =(G76+G82)-K76 -> 0
C77: ='[4]Test Afford of Variable Tariff'!$C$25 -> Domestic Metered Three Phase Type 2 | D77: Type 2 | E77: 0 | F77: ='[4]Test Afford of Variable Tariff'!$L$25 -> 0
C78: ='[4]Test Afford of Variable Tariff'!$C$26 -> Domestic Metered Three Phase Type 3 | D78: Type 2 | E78: 0 | F78: ='[4]Test Afford of Variable Tariff'!$L$26 -> 0
C79: ='[4]Test Afford of Variable Tariff'!$C$27 -> Domestic Metered Three Phase Type 4 | D79: Type 2 | E79: 0 | F79: ='[4]Test Afford of Variable Tariff'!$L$27 -> 0
C80: ='[4]Test Afford of Variable Tariff'!$C$28 -> Domestic Metered Three Phase Type 5 | D80: Type 2 | E80: 0 | F80: ='[4]Test Afford of Variable Tariff'!$L$28 -> 0
C81: ='[4]Test Afford of Variable Tariff'!$C$29 -> Domestic Metered Three Phase Type 6 | D81: Type 2 | E81: 0 | F81: ='[4]Test Afford of Variable Tariff'!$L$29 -> 0
C82: Fixed Fee | E82: 0 | F82: ='[4]Test Afford of Fixed Tariff'!$L$15/12 -> 0 | G82: =E82*F82 -> 0
C83: SUBTOTAL | G83: =SUM(G76+G82) -> 0
C84: HIGH INCOME TOTAL | G84: =G63+G69+G72+G74+G76+G82 -> 0 | I84: =IF(E59=0,0,G84/(E59/12)) -> 0 | J84: =J63+J72+J74+J76 -> 0 | K84: =K63+K69+K72+K74+K76+K82 -> 0 | L84: =G84-K84 -> 0
